bitfinex/quotes_BTCUSD_20240719
["timestamp","ask_amount","ask_price","bid_price","bid_amount"]
[1721390724743,0.001,64229.0,64228.0,0.155694]
[1721390725385,0.02878159,64229.0,64228.0,0.155694]
[1721390726188,0.004,64229.0,64228.0,0.155694]
[1721390726387,0.004,64229.0,64228.0,0.468084]
[1721390726876,0.003,64229.0,64228.0,0.468084]
[1721390727086,0.03078159,64229.0,64228.0,0.156694]
[1721390727284,0.03478159,64229.0,64228.0,0.156694]
[1721390728637,0.03478159,64229.0,64228.0,0.001]
[1721390729263,0.03478159,64229.0,64228.0,0.00869011]
[1721390730908,0.11448159,64229.0,64228.0,0.00960311]
[1721390731900,0.11448159,64229.0,64228.0,0.16529811]
[1721390732899,0.17758159,64229.0,64228.0,0.00960311]
[1721390733112,0.95604359,64229.0,64228.0,0.00960311]
[1721390733313,1.26742859,64229.0,64228.0,0.00960311]
[1721390733513,1.26742859,64229.0,64228.0,0.001913]
[1721390734906,1.39467145,64229.0,64228.0,0.001913]
[1721390736125,1.26742859,64229.0,64228.0,0.001913]
[1721390736844,0.95604359,64229.0,64228.0,0.001913]
[1721390738618,0.33327359,64229.0,64228.0,0.001913]
[1721390739023,0.33327359,64229.0,64228.0,0.01100577]
[1721390739341,0.17758159,64229.0,64228.0,0.01100577]
[1721390743224,0.007,64229.0,64228.0,0.01100577]
[1721390743422,0.007,64229.0,64228.0,0.16670077]
[1721390743423,0.03478159,64229.0,64228.0,0.16670077]
[1721390744441,0.007,64229.0,64228.0,0.78948077]
[1721390745124,0.007,64229.0,64228.0,1.39685251]
[1721390745329,0.007,64229.0,64228.0,1.52615095]
[1721390746456,0.007,64229.0,64228.0,1.52614962]
[1721390747020,0.007,64229.0,64228.0,1.39685251]
[1721390747361,0.007,64229.0,64228.0,1.52614976]
[1721390747901,0.007,64229.0,64228.0,1.85975817]
[1721390748121,0.007,64229.0,64228.0,2.38809405]
[1721390748335,0.005,64230.0,64229.0,1.42345041]
[1721390748546,0.46304871,64247.0,64246.0,0.544954]
[1721390748748,0.46304871,64247.0,64246.0,1.73983899]
[1721390748943,0.0391029,64248.0,64247.0,0.466947]
[1721390749162,0.0391029,64248.0,64247.0,1.37322199]
[1721390749368,0.0391029,64248.0,64247.0,1.3822881]
[1721390750111,0.0391029,64248.0,64247.0,1.6935861]
[1721390750277,0.0391029,64248.0,64247.0,1.693534]
[1721390750515,0.0401029,64248.0,64247.0,1.700534]
[1721390750853,0.0401029,64248.0,64247.0,1.707534]
[1721390751052,0.0411029,64248.0,64247.0,1.707534]
[1721390751331,0.0401029,64248.0,64247.0,1.693534]
[1721390751546,0.0391029,64248.0,64247.0,1.693534]
[1721390751756,0.0401029,64248.0,64247.0,1.706534]
[1721390752589,0.0411029,64248.0,64247.0,1.718534]
[1721390752831,0.0411029,64248.0,64247.0,1.706534]
[1721390753207,0.0421029,64248.0,64247.0,1.59028885]
[1721390753426,0.0421029,64248.0,64247.0,1.71953329]
[1721390753986,0.0421029,64248.0,64247.0,1.40823529]
[1721390754997,0.0421029,64248.0,64247.0,1.71953329]
[1721390755240,0.0421029,64248.0,64247.0,1.74253329]
[1721390758856,0.0421029,64248.0,64247.0,1.8310517]
[1721390759507,0.0421029,64248.0,64247.0,1.83104997]
[1721390760743,0.0421029,64248.0,64247.0,1.91064997]
[1721390760943,0.002,64249.0,64248.0,1.27584341]
[1721390761166,0.002,64249.0,64248.0,2.85305486]
[1721390761340,0.002,64249.0,64248.0,2.85929678]
[1721390761540,0.002,64249.0,64248.0,3.17338378]
[1721390761744,0.002,64249.0,64248.0,3.17057033]
[1721390762148,0.00834,64272.0,64250.0,0.02221841]
[1721390762497,0.46304871,64288.0,64278.0,0.466722]
[1721390762688,0.46304871,64288.0,64278.0,1.626223]
[1721390762914,0.46304871,64288.0,64278.0,1.75823749]
[1721390763149,0.00833,64291.0,64278.0,1.67800735]
[1721390763374,0.00833,64291.0,64278.0,2.19493435]
[1721390763950,0.00833,64291.0,64278.0,2.23977222]
[1721390764354,0.00833,64291.0,64285.0,1.088899]
[1721390764613,0.00833,64291.0,64285.0,1.59615974]
[1721390764818,0.00833,64291.0,64285.0,1.60516617]
[1721390765971,0.00833,64291.0,64285.0,1.61716617]
[1721390766249,0.02796938,64286.0,64285.0,0.55464869]
[1721390766437,0.02796938,64286.0,64285.0,0.86576269]
[1721390766438,0.00018779,64286.0,64285.0,0.86576269]
[1721390766786,0.00018779,64286.0,64285.0,1.17687669]
[1721390766997,0.00018779,64286.0,64285.0,1.19087669]
[1721390767383,0.00018779,64286.0,64285.0,1.17687669]
[1721390767648,0.00018779,64286.0,64285.0,1.17887669]
[1721390768091,0.00018779,64286.0,64285.0,1.19287669]
[1721390768468,0.00018779,64286.0,64285.0,1.30805967]
[1721390768874,0.00018779,64286.0,64285.0,1.32105967]
[1721390769011,0.00018779,64286.0,64285.0,1.63217367]
[1721390769214,0.00018779,64286.0,64285.0,1.33505967]
[1721390769658,0.00018779,64286.0,64285.0,1.64617367]
[1721390771078,0.00018779,64286.0,64285.0,1.64617242]
[1721390772547,0.00018779,64286.0,64285.0,1.33505842]
[1721390772879,0.00018779,64286.0,64285.0,1.64617242]
[1721390774329,0.00018779,64286.0,64285.0,1.64617096]
[1721390774734,0.00018779,64286.0,64285.0,1.66917096]
[1721390775919,0.00018779,64286.0,64285.0,1.83378937]
[1721390776198,0.00018779,64286.0,64285.0,2.02754702]
[1721390776504,0.00018779,64286.0,64285.0,2.53130089]
[1721390776702,0.7597,64289.0,64288.0,1.17106841]
[1721390776913,0.7597,64289.0,64288.0,1.77138807]
[1721390777123,0.7597,64289.0,64288.0,2.18484701]
[1721390777327,0.00833,64312.0,64307.0,0.0269]
[1721390777453,0.00833,64312.0,64311.0,0.466482]
[1721390777650,0.00833,64312.0,64311.0,1.45654428]
[1721390777857,0.00833,64312.0,64311.0,1.77649031]
[1721390778265,0.00833,64312.0,64311.0,1.26367764]
[1721390778702,0.00833,64312.0,64311.0,1.57456548]
[1721390779343,0.02778159,64322.0,64318.0,0.466431]
[1721390779687,0.02796929,64319.0,64318.0,0.94368061]
[1721390779965,0.17366929,64319.0,64318.0,0.13809563]
[1721390780740,0.17366929,64319.0,64318.0,0.29357263]
[1721390780941,0.17366929,64319.0,64318.0,0.13809563]
[1721390781142,0.17366929,64319.0,64318.0,0.29357263]
[1721390781345,0.17366929,64319.0,64318.0,0.5058646]
[1721390781551,0.17366929,64319.0,64318.0,0.97120034]
[1721390781745,0.17366929,64319.0,64318.0,0.9526017]
[1721390781953,0.17366929,64319.0,64318.0,0.9566017]
[1721390782180,0.17366929,64319.0,64318.0,0.95649709]
[1721390782386,0.1458877,64319.0,64318.0,0.95649709]
[1721390782586,0.17366929,64319.0,64318.0,0.33168435]
[1721390782788,0.17366929,64319.0,64318.0,0.35328655]
[1721390783021,0.17366929,64319.0,64318.0,0.49016375]
[1721390783219,0.17366929,64319.0,64318.0,0.49416375]
[1721390783428,0.17366929,64319.0,64318.0,0.82645066]
[1721390783429,0.0821877,64319.0,64318.0,0.82645066]
[1721390783914,0.10996929,64319.0,64318.0,0.63576122]
[1721390784116,0.0821877,64319.0,64318.0,0.63576122]
[1721390784289,0.10996929,64319.0,64318.0,0.63276122]
[1721390784489,0.10996929,64319.0,64318.0,0.63576122]
[1721390784895,0.10996929,64319.0,64318.0,0.5184976]
[1721390785278,0.10996929,64319.0,64318.0,0.3630206]
[1721390785480,0.57639429,64319.0,64318.0,0.20853737]
[1721390785694,0.95204429,64319.0,64318.0,0.006]
[1721390785889,0.155504,64307.0,64306.0,0.01860318]
[1721390786111,0.155504,64307.0,64296.0,0.002794]
[1721390786112,0.02778159,64297.0,64296.0,0.002794]
[1721390786312,0.02778159,64297.0,64296.0,0.34813757]
[1721390786313,0.18330959,64297.0,64296.0,0.34813757]
[1721390786537,0.02778159,64297.0,64296.0,0.34813757]
[1721390786905,0.02778159,64297.0,64296.0,0.50366757]
[1721390787850,0.311029,64303.0,64296.0,0.34813757]
[1721390787851,0.02778159,64303.0,64296.0,0.34813757]
[1721390788008,0.02778159,64303.0,64302.0,0.17402811]
[1721390788208,0.17308159,64308.0,64302.0,0.46541374]
[1721390788422,0.1453,64308.0,64306.0,0.155506]
[1721390788649,0.1453,64308.0,64304.0,0.311022]
[1721390788650,0.1453,64308.0,64307.0,0.50364122]
[1721390788864,0.0806,64308.0,64307.0,1.12565722]
[1721390789080,0.0755,64308.0,64307.0,1.12565722]
[1721390789943,0.0755,64308.0,64307.0,0.81464922]
[1721390790145,0.10328159,64308.0,64307.0,0.81464922]
[1721390790473,0.10328159,64308.0,64307.0,0.50364122]
[1721390790667,0.10728159,64308.0,64307.0,0.50364122]
[1721390791547,0.10728159,64308.0,64307.0,0.34799998]
[1721390791751,0.10728159,64308.0,64307.0,0.34789479]
[1721390791954,0.88478859,64308.0,64307.0,0.19372382]
[1721390792076,1.19579159,64308.0,64307.0,0.32278848]
[1721390792503,1.19579159,64308.0,64307.0,0.33066199]
[1721390794291,1.26129159,64308.0,64307.0,0.33066199]
[1721390794512,1.26129159,64308.0,64307.0,0.13704035]
[1721390794730,1.26129159,64308.0,64307.0,0.15565956]
[1721390794929,1.26129159,64308.0,64307.0,0.12917061]
[1721390795423,1.26139773,64308.0,64307.0,0.12917061]
[1721390795726,1.26139773,64308.0,64307.0,0.14778605]
[1721390796457,1.26139773,64308.0,64307.0,0.12917061]
[1721390797094,1.56740073,64308.0,64307.0,0.12917061]
[1721390797507,1.56740073,64308.0,64290.0,0.158337]
[1721390797508,0.02778159,64291.0,64290.0,0.158337]
[1721390797708,0.02778159,64291.0,64290.0,0.28356466]
[1721390798036,0.02778159,64291.0,64290.0,0.43910968]
[1721390798361,0.2237,64302.0,64290.0,0.43910968]
[1721390798362,0.02778159,64301.0,64291.0,0.311081]
[1721390798573,0.02778159,64301.0,64300.0,0.02141296]
[1721390798780,0.155516,64302.0,64300.0,0.12918294]
[1721390798940,0.00410614,64308.0,64307.0,0.155504]
[1721390799142,0.00410614,64308.0,64307.0,0.75007668]
[1721390799532,0.00010614,64308.0,64307.0,1.06108468]
[1721390800043,0.00010614,64308.0,64307.0,1.25479352]
[1721390800550,0.00010614,64308.0,64307.0,1.2577498]
[1721390800925,0.00010614,64308.0,64307.0,1.2637498]
[1721390801341,0.00010614,64308.0,64307.0,1.2697498]
[1721390801748,0.00010614,64308.0,64307.0,1.3308498]
[1721390801890,1e-08,64308.0,64307.0,1.3308498]
[1721390802091,1e-08,64308.0,64307.0,1.6418578]
[1721390803284,1e-08,64308.0,64307.0,0.9587418]
[1721390803285,0.0277816,64308.0,64307.0,0.9587418]
[1721390803487,0.0277816,64308.0,64307.0,0.6477338]
[1721390803694,0.0277816,64308.0,64307.0,0.32488574]
[1721390803901,0.0277816,64308.0,64307.0,0.33787057]
[1721390803902,0.3191826,64308.0,64307.0,0.33787057]
[1721390804106,0.9411886,64308.0,64307.0,0.13814823]
[1721390804310,1.2521916,64308.0,64307.0,0.14214823]
[1721390804426,0.9411886,64308.0,64307.0,0.14214823]
[1721390805066,0.9411886,64308.0,64307.0,0.13314823]
[1721390805486,0.9411886,64308.0,64307.0,0.13714823]
[1721390806142,0.3191826,64308.0,64307.0,0.28752997]
[1721390806359,0.1636816,64308.0,64307.0,0.14223895]
[1721390806562,0.3191826,64308.0,64307.0,0.14223895]
[1721390806769,0.6301856,64308.0,64307.0,0.13825667]
[1721390806973,0.9421886,64308.0,64307.0,0.12916595]
[1721390808232,1.2531916,64308.0,64307.0,0.12916595]
[1721390808474,0.1041816,64308.0,64307.0,0.15438174]
[1721390808714,0.00100001,64308.0,64307.0,0.75915282]
[1721390808921,0.00100001,64308.0,64307.0,1.07016082]
[1721390809128,0.00100001,64308.0,64307.0,1.28248566]
[1721390809341,0.00100001,64308.0,64307.0,1.28247698]
[1721390809819,1e-08,64308.0,64307.0,0.95959718]
[1721390810010,1e-08,64308.0,64307.0,1.2824432]
[1721390810216,0.00100001,64308.0,64307.0,1.26383876]
[1721390810430,0.00100001,64308.0,64307.0,1.28244295]
[1721390811080,0.00100001,64308.0,64307.0,1.07013098]
[1721390811303,0.00100001,64308.0,64307.0,1.07613098]
[1721390811912,0.0287816,64308.0,64307.0,1.08213098]
[1721390813158,0.0287816,64308.0,64307.0,1.08213665]
[1721390814107,0.0287816,64308.0,64307.0,1.07613665]
[1721390814512,0.0287816,64308.0,64307.0,0.30361665]
[1721390814908,0.0287816,64308.0,64307.0,0.14923491]
[1721390815115,0.8591856,64308.0,64307.0,0.02009072]
[1721390815339,1.1701886,64308.0,64307.0,0.011]
[1721390815543,1.4811916,64308.0,64307.0,0.011]
[1721390815791,1.4811916,64308.0,64307.0,0.005]
[1721390815792,1.4801916,64308.0,64307.0,0.005]
[1721390816179,1.4801916,64308.0,64296.0,0.002794]
[1721390816180,0.02778159,64297.0,64296.0,0.002794]
[1721390816365,0.02778159,64297.0,64296.0,0.28354869]
[1721390816544,0.02778159,64297.0,64296.0,0.29265456]
[1721390816948,0.02778159,64297.0,64296.0,0.44818456]
[1721390817204,0.02778159,64297.0,64296.0,0.29265456]
[1721390817414,0.02778159,64297.0,64296.0,0.30465456]
[1721390817811,0.02778159,64297.0,64296.0,0.31665456]
[1721390818230,0.94802159,64297.0,64296.0,0.16227282]
[1721390818393,0.94802159,64297.0,64296.0,0.03310587]
[1721390818572,0.94802159,64297.0,64296.0,0.024]
[1721390818780,1.25907759,64297.0,64296.0,0.024]
[1721390819376,0.155541,64292.0,64286.0,0.158347]
[1721390819640,0.155541,64292.0,64287.0,0.28356873]
[1721390819641,0.02778159,64288.0,64287.0,0.28356873]
[1721390819842,0.02778159,64288.0,64287.0,0.28356916]
[1721390820451,0.02778159,64278.0,64277.0,0.31115]
[1721390820629,0.311104,64287.0,64279.0,0.155571]
[1721390820630,0.02778159,64280.0,64279.0,0.155571]
[1721390820830,0.311104,64287.0,64277.0,0.155575]
[1721390820831,0.02778159,64278.0,64277.0,0.155575]
[1721390821034,0.02778159,64278.0,64277.0,0.28477738]
[1721390821265,0.02778159,64278.0,64277.0,0.28358412]
[1721390821647,0.02778159,64278.0,64277.0,0.28359015]
[1721390821843,0.388629,64282.0,64277.0,0.28359015]
[1721390821844,0.10528159,64282.0,64277.0,0.29271044]
[1721390822183,0.0775,64282.0,64279.0,0.155571]
[1721390822387,0.02778159,64281.0,64280.0,0.15438174]
[1721390822597,0.02778159,64281.0,64280.0,0.16349976]
[1721390822982,0.0775,64282.0,64280.0,0.16349976]
[1721390823726,0.02778159,64281.0,64280.0,0.18049976]
[1721390824265,0.02778159,64281.0,64280.0,0.17249976]
[1721390824462,0.02778159,64281.0,64280.0,0.18049976]
[1721390824765,0.02778159,64281.0,64280.0,0.18749976]
[1721390825974,0.02778159,64281.0,64280.0,0.17049976]
[1721390826152,0.02778159,64281.0,64280.0,0.31906876]
[1721390826349,0.02778159,64281.0,64280.0,0.17149976]
[1721390826916,0.02778159,64281.0,64280.0,0.18049976]
[1721390831393,0.0775,64282.0,64280.0,0.33606676]
[1721390832037,0.0775,64282.0,64281.0,0.155566]
[1721390832242,0.0775,64282.0,64281.0,0.30994774]
[1721390832498,0.0775,64282.0,64281.0,0.31911108]
[1721390833018,0.02778159,64285.0,64281.0,0.31911108]
[1721390833569,0.02778159,64287.0,64282.0,0.15438174]
[1721390833782,0.02778159,64287.0,64286.0,0.155554]
[1721390833896,0.02778159,64287.0,64286.0,0.466663]
[1721390834104,0.02778159,64287.0,64286.0,0.47582256]
[1721390834515,0.0804,64293.0,64286.0,0.1635413]
[1721390834716,0.311042,64300.0,64287.0,0.15749251]
[1721390834717,0.02778159,64296.0,64287.0,0.15749251]
[1721390834959,0.02778159,64295.0,64287.0,0.16766895]
[1721390835169,0.02778159,64294.0,64293.0,0.155536]
[1721390835379,0.236626,64298.0,64293.0,0.15438174]
[1721390835380,0.02778159,64297.0,64293.0,0.15438174]
[1721390835637,0.02778159,64297.0,64296.0,0.466591]
[1721390835996,0.02778159,64297.0,64296.0,0.32007328]
[1721390837073,0.02778159,64297.0,64296.0,0.63113428]
[1721390837273,0.0811,64298.0,64297.0,0.155528]
[1721390837475,0.02547927,64301.0,64298.0,0.155525]
[1721390837672,0.02547927,64301.0,64299.0,0.01015901]
[1721390837917,0.02547927,64301.0,64300.0,0.15552]
[1721390838120,0.02547927,64303.0,64300.0,0.15552]
[1721390838416,0.02547927,64301.0,64300.0,0.16567817]
[1721390838948,0.00083,64308.0,64307.0,0.155504]
[1721390839147,0.02630927,64308.0,64307.0,0.93190174]
[1721390839350,0.02630927,64308.0,64307.0,0.94204261]
[1721390839681,0.00083,64308.0,64307.0,0.94204261]
[1721390840101,0.00083,64308.0,64307.0,0.94304261]
[1721390840308,0.00083,64308.0,64307.0,0.94404261]
[1721390840680,0.00083,64308.0,64307.0,0.94304261]
[1721390840886,0.00083,64308.0,64307.0,0.94404261]
[1721390841949,0.02630927,64308.0,64307.0,0.94304261]
[1721390842349,0.00083,64308.0,64307.0,0.94204261]
[1721390842485,0.02630927,64308.0,64307.0,0.94204261]
[1721390842689,0.02630927,64308.0,64307.0,0.64003461]
[1721390842894,0.00083,64308.0,64307.0,0.64003461]
[1721390843098,0.00083,64308.0,64307.0,0.94704261]
[1721390843520,0.00083,64308.0,64307.0,0.95204261]
[1721390844765,0.00083,64308.0,64307.0,0.94704261]
[1721390845870,0.00083,64308.0,64307.0,0.94204261]
[1721390846073,0.00083,64308.0,64307.0,1.38718977]
[1721390846524,0.00083,64308.0,64307.0,1.27505061]
[1721390846767,0.00083,64308.0,64307.0,1.39918927]
[1721390846921,0.00083,64308.0,64307.0,1.38818927]
[1721390847519,0.00083,64308.0,64307.0,1.38218927]
[1721390847726,0.00083,64308.0,64307.0,1.39018927]
[1721390848412,0.00083,64308.0,64307.0,1.39818927]
[1721390848936,0.00083,64308.0,64307.0,1.39018927]
[1721390849134,0.00083,64308.0,64307.0,1.39118927]
[1721390849285,0.00083,64308.0,64307.0,1.08018127]
[1721390849489,0.00083,64308.0,64307.0,0.96104261]
[1721390850090,0.00083,64308.0,64307.0,1.27205061]
[1721390850413,0.00083,64308.0,64307.0,0.96104261]
[1721390850618,0.00083,64308.0,64307.0,0.95104261]
[1721390850979,0.00083,64308.0,64307.0,0.96104261]
[1721390852377,0.00083,64308.0,64307.0,0.95204261]
[1721390852732,0.00083,64308.0,64307.0,1.25305061]
[1721390852931,0.00083,64308.0,64307.0,1.39218644]
[1721390853493,0.00083,64308.0,64307.0,1.40118644]
[1721390854033,0.00083,64308.0,64307.0,1.39218644]
[1721390854261,0.00083,64308.0,64307.0,1.38218644]
[1721390854459,0.00083,64308.0,64307.0,1.39218644]
[1721390854660,0.00083,64308.0,64307.0,1.45308644]
[1721390855229,0.00083,64308.0,64307.0,1.39218644]
[1721390855434,0.00083,64308.0,64307.0,1.40118644]
[1721390855890,0.00083,64308.0,64307.0,1.38218644]
[1721390856232,0.00083,64308.0,64307.0,1.39518644]
[1721390856702,0.00083,64308.0,64307.0,1.38218644]
[1721390856906,0.00083,64308.0,64307.0,1.39518644]
[1721390857343,0.00083,64308.0,64307.0,1.09717844]
[1721390857548,0.02630927,64308.0,64307.0,1.09717844]
[1721390857799,0.07593,64308.0,64307.0,1.09717844]
[1721390857969,0.10140927,64308.0,64307.0,0.96804261]
[1721390858189,0.07593,64308.0,64307.0,0.96804261]
[1721390858390,0.07593,64308.0,64307.0,1.09718482]
[1721390859062,0.07593,64308.0,64307.0,1.08418482]
[1721390859238,0.07593,64308.0,64307.0,1.08418325]
[1721390859991,0.10140927,64308.0,64307.0,1.08418325]
[1721390860521,0.07593,64308.0,64307.0,1.09718325]
[1721390861070,0.00083,64308.0,64307.0,1.09718325]
[1721390861349,0.00083,64308.0,64307.0,1.40819125]
[1721390862467,0.00083,64308.0,64307.0,1.40818854]
[1721390863659,0.00083,64308.0,64307.0,1.09718054]
[1721390864288,0.02630927,64308.0,64307.0,1.09718054]
[1721390864614,0.16460927,64308.0,64307.0,0.1652788]
[1721390864861,0.32011027,64308.0,64307.0,0.1652788]
[1721390865061,0.63111327,64308.0,64307.0,0.1652788]
[1721390865265,0.63111327,64308.0,64307.0,0.16529825]
[1721390865477,0.63111327,64308.0,64307.0,0.14215732]
[1721390865676,0.63111327,64308.0,64307.0,0.15515732]
[1721390866053,0.63111327,64308.0,64307.0,0.14215732]
[1721390866453,0.63111327,64308.0,64307.0,0.15227416]
[1721390866891,0.63111327,64308.0,64307.0,0.13927416]
[1721390867286,0.63111327,64308.0,64297.0,0.000913]
[1721390867287,0.10627927,64298.0,64297.0,0.000913]
[1721390867489,0.10627927,64298.0,64297.0,0.28560561]
[1721390867490,0.16747927,64298.0,64297.0,0.28560561]
[1721390867895,0.16747927,64298.0,64297.0,0.13918959]
[1721390868100,0.63405527,64298.0,64297.0,0.13918959]
[1721390868478,0.63405527,64298.0,64297.0,0.000913]
[1721390869684,0.63405527,64298.0,64297.0,0.011913]
[1721390870105,0.63405527,64298.0,64297.0,0.000913]
[1721390870318,0.16747927,64298.0,64297.0,0.000913]
[1721390870521,0.02547927,64298.0,64297.0,0.31082274]
[1721390870720,0.02547927,64298.0,64297.0,0.75105519]
[1721390870951,0.10467927,64304.0,64303.0,0.155513]
[1721390871285,0.10467927,64304.0,64303.0,0.16339887]
[1721390871543,0.0792,64304.0,64303.0,0.31778061]
[1721390871742,0.10467927,64304.0,64303.0,0.62880761]
[1721390871968,0.10467927,64304.0,64303.0,0.31778061]
[1721390872290,0.10467927,64304.0,64303.0,0.16226761]
[1721390872490,0.10467927,64304.0,64303.0,0.00788587]
[1721390872717,0.02547927,64299.0,64298.0,0.155525]
[1721390872944,0.02547927,64299.0,64298.0,0.13784975]
[1721390873144,0.02547927,64299.0,64298.0,0.29337475]
[1721390875214,0.02547927,64299.0,64298.0,0.13984975]
[1721390875631,0.02547927,64299.0,64298.0,0.29537475]
[1721390875835,0.02547927,64300.0,64298.0,0.29537475]
[1721390876036,0.02547927,64299.0,64298.0,0.16620325]
[1721390876265,0.02547927,64299.0,64298.0,0.14284931]
[1721390876480,0.02547927,64299.0,64298.0,0.14084931]
[1721390876694,0.02547927,64299.0,64298.0,0.13784931]
[1721390876894,0.02547927,64299.0,64298.0,0.29337431]
[1721390878279,0.02547927,64299.0,64298.0,0.13784931]
[1721390878670,0.02547927,64299.0,64298.0,0.29337431]
[1721390879106,0.02547927,64299.0,64298.0,0.13784931]
[1721390879310,0.09027927,64299.0,64298.0,0.00867825]
[1721390879514,0.09027927,64299.0,64298.0,0.13784921]
[1721390879813,0.02547927,64298.0,64297.0,0.15644]
[1721390879944,0.02547927,64298.0,64297.0,0.28561241]
[1721390880731,0.02547927,64298.0,64297.0,0.28561034]
[1721390881156,0.02547927,64298.0,64297.0,0.28661034]
[1721390881712,0.02547927,64298.0,64297.0,0.29450239]
[1721390881936,0.0648,64299.0,64298.0,0.155525]
[1721390882112,0.10467927,64304.0,64303.0,0.155513]
[1721390882311,0.10467927,64304.0,64303.0,0.16349727]
[1721390882537,0.10467927,64304.0,64303.0,0.00798427]
[1721390882711,0.10467927,64304.0,64303.0,0.16349727]
[1721390882910,0.0792,64304.0,64303.0,0.62890601]
[1721390883325,0.02547927,64307.0,64306.0,0.466518]
[1721390883529,0.02547927,64307.0,64306.0,0.47529842]
[1721390887596,0.00083,64308.0,64307.0,0.466512]
[1721390887801,0.00083,64308.0,64307.0,1.06105361]
[1721390888198,0.00083,64308.0,64307.0,1.06903512]
[1721390889188,0.00083,64308.0,64307.0,1.07303512]
[1721390889392,0.00083,64308.0,64307.0,1.38404312]
[1721390889739,0.00083,64308.0,64307.0,1.25489125]
[1721390889855,0.00083,64308.0,64307.0,1.38903285]
[1721390890416,0.02630927,64308.0,64307.0,1.38903285]
[1721390890646,0.02630927,64308.0,64307.0,1.08302485]
[1721390890918,0.00083,64308.0,64307.0,1.08302485]
[1721390891126,0.02630927,64308.0,64307.0,1.08302485]
[1721390891556,0.00083,64308.0,64307.0,1.08302485]
[1721390892922,0.00083,64308.0,64307.0,1.08302579]
[1721390893126,0.00083,64308.0,64307.0,0.77201779]
[1721390893127,0.02630927,64308.0,64307.0,0.77201779]
[1721390893553,0.09180927,64308.0,64307.0,0.46100979]
[1721390893968,0.09180927,64308.0,64307.0,0.02198151]
[1721390893969,0.32631027,64308.0,64307.0,0.02198151]
[1721390894144,0.63731327,64308.0,64307.0,0.02198151]
[1721390894356,0.63731327,64308.0,64307.0,0.009]
[1721390894682,0.63731327,64308.0,64307.0,0.013]
[1721390894878,0.32631027,64308.0,64307.0,0.004]
[1721390895518,0.63731327,64308.0,64307.0,0.004]
[1721390895721,0.94831627,64308.0,64307.0,0.004]
[1721390896140,0.94831627,64308.0,64298.0,0.155525]
[1721390896141,0.02547927,64299.0,64298.0,0.155525]
[1721390896348,0.02547927,64299.0,64298.0,0.43906888]
[1721390896542,0.02547927,64299.0,64298.0,0.76058524]
[1721390897406,0.02547927,64299.0,64298.0,0.44953424]
[1721390897632,0.02547927,64301.0,64298.0,0.44953424]
[1721390897783,0.02547927,64301.0,64299.0,0.12916214]
[1721390897985,0.02547927,64301.0,64300.0,0.12916214]
[1721390898523,0.02547927,64301.0,64300.0,0.1396341]
[1721390899262,0.02547927,64301.0,64300.0,0.13963584]
[1721390899703,0.10667927,64301.0,64300.0,0.14563382]
[1721390899877,0.26219727,64301.0,64300.0,0.14563382]
[1721390900074,0.10667927,64301.0,64300.0,0.14563382]
[1721390900821,0.10667927,64301.0,64300.0,0.15163382]
[1721390902017,0.26005557,64301.0,64300.0,0.15163382]
[1721390902221,1.48330827,64301.0,64300.0,0.02247196]
[1721390902728,1.48330827,64301.0,64300.0,0.012]
[1721390903156,1.48330827,64301.0,64300.0,0.006]
[1721390903359,1.60898299,64301.0,64300.0,0.006]
[1721390903642,1.60898299,64301.0,64297.0,0.000913]
[1721390903643,1.30285727,64298.0,64297.0,0.000913]
[1721390903840,1.61390827,64298.0,64297.0,0.000913]
[1721390904042,1.63824743,64298.0,64297.0,0.000913]
[1721390904478,1.66047522,64298.0,64297.0,0.000913]
[1721390904675,1.61047522,64298.0,64297.0,0.000913]
[1721390905256,1.56390827,64298.0,64297.0,0.000913]
[1721390906391,1.56390827,64298.0,64297.0,0.001913]
[1721390906931,1.61390827,64298.0,64297.0,0.001913]
[1721390907354,1.99247729,64298.0,64297.0,0.001913]
[1721390907560,2.01681782,64298.0,64297.0,0.002913]
[1721390908194,1.94698011,64298.0,64297.0,0.002913]
[1721390909830,1.25557927,64279.0,64278.0,0.002794]
[1721390910030,1.25557927,64279.0,64277.0,0.000913]
[1721390910031,0.80334927,64278.0,64277.0,0.000913]
[1721390910451,0.18105327,64278.0,64277.0,0.000913]
[1721390911037,0.49220127,64278.0,64277.0,0.000913]
[1721390911650,0.18105327,64278.0,64277.0,0.000913]
[1721390911845,0.18105327,64278.0,64277.0,0.01078517]
[1721390912260,0.49220127,64278.0,64277.0,0.01078517]
[1721390912494,0.49220127,64278.0,64277.0,0.000913]
[1721390912988,0.18505327,64278.0,64277.0,0.000913]
[1721390913609,0.18305327,64278.0,64277.0,0.000913]
[1721390913943,0.18605327,64278.0,64277.0,0.000913]
[1721390914367,0.49720127,64278.0,64277.0,0.000913]
[1721390914564,0.18605327,64278.0,64277.0,0.000913]
[1721390914770,0.03047927,64278.0,64277.0,0.000913]
[1721390914975,0.03047927,64278.0,64277.0,0.16636117]
[1721390914976,0.02747927,64278.0,64277.0,0.16636117]
[1721390915178,0.02747927,64278.0,64277.0,0.01078517]
[1721390915521,0.02547927,64278.0,64277.0,0.01078517]
[1721390916499,0.02647927,64278.0,64277.0,0.01078517]
[1721390917067,0.02547927,64278.0,64277.0,0.01078517]
[1721390917463,0.02547927,64278.0,64277.0,0.01378517]
[1721390917873,0.02547927,64278.0,64277.0,0.01078517]
[1721390918251,0.02547927,64278.0,64277.0,0.01178517]
[1721390919692,0.02547927,64278.0,64277.0,0.16736117]
[1721390920720,0.02747927,64278.0,64277.0,0.16736117]
[1721390920938,0.07822527,64278.0,64277.0,0.16736117]
[1721390921319,0.07822527,64278.0,64277.0,0.16636117]
[1721390921672,0.08022527,64278.0,64277.0,0.16636117]
[1721390922057,0.07822527,64278.0,64277.0,0.16636117]
[1721390922705,0.08022527,64278.0,64277.0,0.16636117]
[1721390924190,0.07822527,64278.0,64277.0,0.16636117]
[1721390924614,0.08022527,64278.0,64277.0,0.16636117]
[1721390924830,0.07822527,64278.0,64277.0,0.16636117]
[1721390925044,0.08022527,64278.0,64277.0,0.16636117]
[1721390925688,0.07822527,64278.0,64277.0,0.16636117]
[1721390926114,0.07822527,64278.0,64277.0,0.01078517]
[1721390926288,0.23579927,64278.0,64277.0,0.01078517]
[1721390927117,0.99939527,64278.0,64277.0,0.01078517]
[1721390927545,0.99939527,64278.0,64277.0,0.000913]
[1721390934136,1.08879527,64278.0,64277.0,0.000913]
[1721390934341,1.08879527,64278.0,64277.0,0.13013973]
[1721390934542,1.08879527,64278.0,64277.0,0.000913]
[1721390935590,1.08879527,64278.0,64277.0,0.13014158]
[1721390935812,1.08879527,64278.0,64277.0,0.13014159]
[1721390936864,1.08879527,64278.0,64277.0,0.000913]
[1721390937068,1.08879527,64278.0,64277.0,0.13014153]